bitfinex-derivatives/quotes_SOLF0:USTF0_20250416
["timestamp","ask_amount","ask_price","bid_price","bid_amount"]
[1744788638617,8.05808982,125.0,124.98,29.45510324]
[1744788639223,6.084,125.08,124.98,36.31959092]
[1744788639419,6.86448768,125.06,125.0,6.86448768]
[1744788639620,6.86448768,125.04,124.99,6.86448768]
[1744788639818,7.9987,125.03,124.99,8.001]
[1744788640423,0.05396095,125.02,125.0,0.0577076]
[1744788641324,6.91844863,125.02,125.0,0.0577076]
[1744788642123,7.9999,125.01,125.0,0.0577076]
[1744788642422,6.91844863,125.02,125.0,0.0577076]
[1744788643023,7.9999,125.01,125.0,0.0577076]
[1744788643221,6.91844863,125.02,125.0,0.0577076]
[1744788643522,0.05396095,125.02,125.0,0.0577076]
[1744788643722,0.05396095,125.02,125.0,8.0579076]
[1744788644123,0.05396095,125.02,125.0,0.0577076]
[1744788644323,6.084,125.08,125.01,29.4]
[1744788644523,6.084,125.08,125.03,6.86448768]
[1744788645523,0.05851788,125.07,125.04,0.05171027]
[1744788645926,0.05851788,125.07,125.05,7.9971]
[1744788647030,0.05851788,125.07,125.04,29.45171027]
[1744788647227,0.05851788,125.07,125.05,6.86448768]
[1744788647629,0.05851788,125.07,125.06,7.9968]
[1744788653229,605.34,125.15,125.06,6.86448768]
[1744788653533,6.86448768,125.14,125.09,6.86448768]
[1744788653835,6.86448768,125.12,125.09,29.38]
[1744788654134,6.86448768,125.1,125.06,29.38]
[1744788654338,6.91926568,125.09,125.07,8.05331179]
[1744788654532,0.054778,125.09,125.07,0.05771179]
[1744788654836,0.054778,125.09,125.07,8.05351179]
[1744788655837,0.054778,125.09,125.07,0.05771179]
[1744788656638,6.86448768,125.08,125.07,0.05771179]
[1744788658938,6.91926568,125.09,125.07,8.05381179]
[1744788659138,0.054778,125.09,125.07,8.05381179]
[1744788659438,0.054778,125.09,125.07,0.05771179]
[1744788659741,8.049878,125.09,125.07,0.05771179]
[1744788660447,0.054778,125.09,125.07,8.05381179]
[1744788660739,0.054778,125.09,125.07,0.05771179]
[1744788661142,8.049678,125.09,125.07,0.05771179]
[1744788662346,8.049678,125.09,125.07,8.05381179]
[1744788662842,0.054778,125.09,125.07,8.05381179]
[1744788663443,8.049778,125.09,125.07,0.05771179]
[1744788663641,0.054778,125.09,125.07,0.05771179]
[1744788664143,0.054778,125.09,125.07,8.05381179]
[1744788665747,0.054778,125.09,125.08,7.9955]
[1744788668647,0.054778,125.09,125.07,8.05351179]
[1744788669345,0.054778,125.09,125.08,7.9955]
[1744788670148,0.054778,125.09,125.07,8.05351179]
[1744788670952,6.86448768,125.08,125.07,0.05771179]
[1744788671445,14.85998768,125.08,125.07,0.05771179]
[1744788679256,6.86448768,125.08,125.07,0.05771179]
[1744788680354,14.85998768,125.08,125.07,0.05771179]
[1744788680855,8.049978,125.09,125.07,0.05771179]
[1744788681055,0.054778,125.09,125.07,0.05771179]
[1744788682158,7.9955,125.08,125.07,0.05771179]
[1744788686164,14.86028768,125.08,125.05,37.3771]
[1744788686762,14.86028768,125.08,125.05,37.43654165]
[1744788687162,14.86028768,125.08,125.05,29.43944165]
[1744788688263,14.86028768,125.08,125.05,37.43684165]
[1744788688564,7.9964,125.07,125.05,29.43944165]
[1744788695065,6.86448768,125.08,125.05,29.43944165]
[1744788695269,8.050278,125.09,125.05,36.30392933]
[1744788695667,8.050278,125.09,125.06,7.9966]
[1744788696571,0.054778,125.09,125.05,36.30392933]
[1744788697172,0.054778,125.09,125.07,6.86448768]
[1744788697368,29.38,125.14,125.08,36.24448768]
[1744788697569,119.18892148,125.16,125.11,6.86448768]
[1744788697872,119.18892148,125.16,125.11,36.24448768]
[1744788698268,7.9913,125.15,125.11,44.23768768]
[1744788698472,7.9913,125.15,125.12,6.86448768]
[1744788698670,0.0614693,125.14,125.12,6.9207383]
[1744788699677,0.0614693,125.14,125.13,14.85678768]
[1744788700574,112.3244338,125.17,125.15,7.9907]
[1744788701473,6.86448768,125.19,125.15,7.9907]
[1744788701668,0.06003194,125.17,125.15,0.0615312]
[1744788702471,7.9904,125.16,125.15,0.0615312]
[1744788703075,0.06003194,125.17,125.15,0.0615312]
[1744788703076,8.05003194,125.17,125.15,0.0615312]
[1744788703470,0.06003194,125.17,125.15,0.0615312]
[1744788704374,8.04983194,125.17,125.15,0.0615312]
[1744788704775,0.06003194,125.17,125.15,0.0615312]
[1744788705476,7.9904,125.16,125.15,0.0615312]
[1744788706973,14.91451962,125.17,125.15,0.0615312]
[1744788708975,0.06003194,125.17,125.15,0.0615312]
[1744788709181,7.9904,125.16,125.15,0.0615312]
[1744788710581,6.92451962,125.17,125.15,0.0615312]
[1744788710582,14.91461962,125.17,125.15,0.0615312]
[1744788712078,8.05013194,125.17,125.15,0.0615312]
[1744788712673,0.06003194,125.17,125.15,6.92601888]
[1744788713081,0.06003194,125.17,125.16,6.86448768]
[1744788713685,0.06003194,125.17,125.16,14.85488768]
[1744788714381,7.9875,125.21,125.17,7.9893]
[1744788714581,40.42678768,125.23,125.18,6.86448768]
[1744788714983,7.9869,125.22,125.18,14.85308768]
[1744788715686,0.05232916,125.21,125.19,0.0533481]
[1744788715985,0.05232916,125.21,125.19,8.0416481]
[1744788716176,0.05232916,125.21,125.2,6.86448768]
[1744788716581,0.05232916,125.21,125.2,36.20448768]
[1744788717585,0.05232916,125.21,125.2,44.19228768]
[1744788717881,0.05232916,125.21,125.2,29.34]
[1744788719586,0.05232916,125.21,125.2,37.3278]
[1744788722388,0.05232916,125.21,125.2,44.19228768]
[1744788726389,11.08208768,125.28,125.2,36.20448768]
[1744788726589,11.08208768,125.28,125.23,6.86448768]
[1744788726790,7.9837,125.27,125.23,37.3256]
[1744788726987,6.86448768,125.26,125.23,29.34]
[1744788727191,14.84938768,125.25,125.23,29.34]
[1744788727390,7.9849,125.25,125.23,29.39350562]
[1744788728585,6.86448768,125.25,125.23,29.39350562]
[1744788728789,6.86448768,125.25,125.23,0.05350562]
[1744788729187,6.86448768,125.24,125.2,29.34]
[1744788729389,6.86448768,125.21,125.17,29.34]
[1744788729591,6.86448768,125.2,125.17,29.34]
[1744788730191,7.9885,125.19,125.17,29.34]
[1744788730491,8.04183645,125.19,125.17,29.39941879]
[1744788730693,14.85358768,125.18,125.17,0.05941879]
[1744788731086,6.86448768,125.18,125.14,29.34]
[1744788731284,7.991,125.15,125.14,29.34]
[1744788731687,7.991,125.15,125.11,29.34]
[1744788731886,6.86448768,125.16,125.11,37.3332]
[1744788731887,6.86448768,125.14,125.11,37.3332]
[1744788732091,6.86448768,125.14,125.11,29.34]
[1744788732292,6.92420119,125.14,125.11,29.39242103]
[1744788732489,6.92420119,125.14,125.12,7.9926]
[1744788733088,6.92420119,125.14,125.13,7.9923]
[1744788733288,0.05971351,125.14,125.13,7.9923]
[1744788733987,10.69988009,125.21,125.16,7.9902]
[1744788734188,29.34,125.21,125.15,29.34]
[1744788734493,22.93878009,125.23,125.17,7.9894]
[1744788735293,0.05156605,125.21,125.19,0.05109061]
[1744788738296,0.05156605,125.21,125.2,7.9878]
[1744788739592,2.1643,125.26,125.24,7.9852]
[1744788739893,29.34,125.27,125.22,29.34]
[1744788740095,12.88738009,125.29,125.22,29.34]
[1744788740691,12.88738009,125.29,125.24,0.05405111]
[1744788740896,0.06080064,125.27,125.24,0.05405111]
[1744788741097,0.06080064,125.27,125.25,7.9842]
[1744788741789,0.06080064,125.27,125.24,8.03905111]
[1744788741989,0.06080064,125.27,125.24,0.05405111]
[1744788743797,0.06080064,125.27,125.25,7.9843]
[1744788744000,0.06080064,125.27,125.24,0.05405111]
[1744788744300,0.06080064,125.27,125.25,7.9841]
[1744788744802,0.06080064,125.27,125.24,0.05405111]
[1744788746100,0.06080064,125.27,125.26,7.984]
[1744788746996,0.06080064,125.27,125.25,37.3043]
[1744788747201,0.06080064,125.27,125.25,29.32]
[1744788747701,0.06080064,125.27,125.26,7.984]
[1744788752005,0.06080064,125.27,125.24,0.05405111]
[1744788752508,40.08068073,125.27,125.24,0.05405111]
[1744788752707,40.08068073,125.27,125.21,29.32]
[1744788752909,10.69988009,125.25,125.21,29.32]
[1744788753106,2.1325,125.24,125.2,7.9878]
[1744788753406,4.1526,125.24,125.2,7.9878]
[1744788753910,0.053527,125.23,125.21,0.05175663]
[1744788754202,10.75340709,125.23,125.21,0.05175663]
[1744788755412,18.73960709,125.23,125.21,0.05175663]
[1744788755608,10.75340709,125.23,125.21,0.05175663]
[1744788756109,18.73970709,125.23,125.21,0.05175663]
[1744788756305,10.75340709,125.23,125.21,0.05175663]
[1744788756511,10.75340709,125.23,125.15,29.32]
[1744788756709,7.9875,125.21,125.15,29.32]
[1744788756908,7.9875,125.21,125.17,7.9894]
[1744788757611,0.05381794,125.2,125.18,0.0564352]
[1744788758109,0.05381794,125.2,125.18,8.0455352]
[1744788759811,0.05381794,125.2,125.18,0.0564352]
[1744788763313,0.05381794,125.2,125.18,8.0454352]
[1744788765714,0.05381794,125.2,125.19,7.9884]
[1744788766714,0.05381794,125.2,125.18,8.0451352]
[1744788769117,0.05381794,125.2,125.18,0.0564352]
[1744788769517,10.69988009,125.19,125.18,0.0564352]
[1744788769818,18.68838009,125.19,125.15,37.3107]
[1744788770212,10.69988009,125.17,125.1,33.0642]
[1744788770516,10.69988009,125.15,125.11,7.9931]
[1744788770712,40.03988009,125.15,125.11,7.9931]
[1744788770917,0.05649204,125.14,125.12,0.05378575]
[1744788771416,10.69988009,125.13,125.12,0.05378575]
[1744788771617,18.69218009,125.13,125.12,0.05378575]
[1744788771913,10.69988009,125.13,125.1,3.7242]
[1744788772120,18.69348009,125.11,125.1,3.7242]
[1744788779125,7.9942,125.1,125.09,0.06010237]
[1744788779732,7.9964,125.07,125.04,31.4856]
[1744788780833,8.05721337,125.07,125.04,31.54076817]
[1744788782733,7.9969,125.06,125.04,31.54076817]
[1744788783033,7.9969,125.06,125.04,0.05516817]
[1744788784234,8.05751337,125.07,125.04,0.05516817]
[1744788784435,0.06081337,125.07,125.04,0.05516817]
[1744788784632,0.06081337,125.07,125.04,2.08956817]
[1744788785632,0.06081337,125.07,125.04,0.05516817]
[1744788786932,7.9971,125.06,125.04,0.05516817]
[1744788787436,0.06081337,125.07,125.04,0.05516817]
[1744788788036,7.9974,125.05,125.04,0.05516817]
[1744788791338,29.36,125.06,125.04,0.05516817]
[1744788791536,0.06081337,125.07,125.04,0.05516817]
[1744788795043,0.06081337,125.07,125.04,29.41516817]
[1744788795334,29.36,125.11,125.05,4.1658]
[1744788795640,29.36,125.11,125.05,12.1629]
[1744788795941,40.05988009,125.11,125.05,4.1658]
[1744788796442,0.05567988,125.09,125.07,0.05877315]
[1744788796842,7.9958,125.08,125.07,0.05877315]
[1744788799044,0.05567988,125.09,125.07,0.05877315]
[1744788799438,0.05567988,125.09,125.07,29.41877315]
[1744788799640,7.9926,125.13,125.07,29.41877315]
[1744788799944,7.9926,125.13,125.07,29.36]
[1744788800444,7.9926,125.13,125.09,7.9945]
[1744788800641,0.05390493,125.12,125.1,0.06100978]
[1744788801451,0.05390493,125.12,125.1,8.05470978]
[1744788801650,0.05390493,125.12,125.1,0.06100978]
[1744788802953,8.04690493,125.12,125.1,0.06100978]
[1744788803752,0.05390493,125.12,125.1,8.05500978]
[1744788803955,0.05390493,125.12,125.1,0.06100978]
[1744788804353,7.9936,125.11,125.1,0.06100978]
[1744788804553,0.05390493,125.12,125.1,0.06100978]
[1744788804952,7.9936,125.11,125.1,0.06100978]
[1744788805153,0.05390493,125.12,125.1,0.06100978]
[1744788805548,8.04720493,125.12,125.1,0.06100978]
[1744788806044,0.05390493,125.12,125.1,0.06100978]
[1744788806248,0.05390493,125.12,125.1,8.05490978]
[1744788807450,0.05390493,125.12,125.1,0.06100978]
[1744788808055,8.04720493,125.12,125.1,0.06100978]
[1744788808854,0.05390493,125.12,125.1,0.06100978]
[1744788809857,8.04710493,125.12,125.1,0.06100978]
[1744788810161,0.05390493,125.12,125.1,0.06100978]
[1744788810654,7.9936,125.11,125.1,0.06100978]
[1744788811452,0.05390493,125.12,125.1,0.06100978]
[1744788811656,0.05390493,125.12,125.11,7.9936]
[1744788811958,40.03988009,125.18,125.1,29.40100978]
[1744788812158,7.9909,125.16,125.12,7.9928]
[1744788812759,7.99,125.17,125.13,7.9921]
[1744788812957,7.99,125.17,125.13,8.04452925]
[1744788812958,0.05391441,125.15,125.13,8.04452925]
[1744788813557,0.05391441,125.15,125.14,7.9916]
[1744788815662,10.69988009,125.22,125.16,7.9899]
[1744788815960,10.69988009,125.22,125.13,29.39242925]
[1744788815961,29.34,125.22,125.13,40.03988009]
[1744788816160,7.9881,125.2,125.16,7.9899]
[1744788816361,7.9881,125.2,125.16,37.3299]
[1744788816561,40.03988009,125.22,125.16,29.34]
[1744788816762,7.9895,125.18,125.13,40.03988009]
[1744788817062,40.03988009,125.22,125.14,0.05388699]
[1744788817363,0.06063395,125.17,125.16,7.9904]
[1744788817664,40.03988009,125.22,125.16,7.9904]
[1744788817957,0.05819231,125.18,125.16,7.9904]
[1744788818362,0.05819231,125.18,125.16,8.04538282]
[1744788818864,0.05819231,125.18,125.17,7.9897]
[1744788819664,0.05819231,125.18,125.16,8.04498282]
[1744788820564,0.05819231,125.18,125.17,7.9897]
[1744788825163,0.05819231,125.18,125.16,29.39498282]
[1744788825467,0.05819231,125.18,125.16,0.05498282]
[1744788826269,0.05819231,125.18,125.16,8.04508282]
[1744788826469,0.05819231,125.18,125.16,0.05498282]
[1744788829673,7.9897,125.17,125.16,0.05498282]
[1744788830478,10.7580724,125.18,125.1,35.7812]
[1744788830773,4.1577,125.17,125.11,7.9933]
[1744788830976,7.9916,125.15,125.11,7.9933]
[1744788831670,0.06140985,125.14,125.12,0.05504239]
[1744788833275,8.05320985,125.14,125.12,0.05504239]
[1744788833674,0.06140985,125.14,125.12,0.05504239]
[1744788834868,7.9923,125.13,125.12,0.05504239]
[1744788835072,0.06140985,125.14,125.08,2.0656]
[1744788835773,0.06140985,125.14,125.08,10.0608]
[1744788835973,0.06140985,125.14,125.08,2.0656]
[1744788836175,7.9927,125.13,125.1,0.05064079]
[1744788836676,7.9929,125.12,125.1,0.05064079]
[1744788836878,0.06140985,125.14,125.1,0.05064079]
[1744788837178,7.9929,125.12,125.1,0.05064079]
[1744788837979,7.9926,125.13,125.1,0.05064079]
[1744788839372,0.06140985,125.14,125.1,36.24058753]
[1744788839980,0.06140985,125.14,125.11,7.9932]
[1744788840281,0.06140985,125.14,125.1,36.24058753]
[1744788840581,0.06140985,125.14,125.12,6.84994674]
[1744788840781,29.34,125.21,125.13,29.34]
[1744788840982,7.9887,125.19,125.15,14.84054674]
[1744788841279,7.9887,125.19,125.15,7.9906]
[1744788841983,0.05282945,125.18,125.16,0.05881031]
[1744788842684,0.05282945,125.18,125.16,8.04901031]
[1744788842981,0.05282945,125.18,125.16,0.05881031]
[1744788843484,7.9897,125.17,125.16,0.05881031]
[1744788846278,7.9919,125.14,125.1,29.34]
[1744788846678,29.34,125.15,125.1,29.34]
[1744788846883,29.34,125.15,125.07,35.6213]
[1744788847075,29.34,125.15,125.08,7.9949]
[1744788847279,7.993,125.12,125.1,0.06126226]
[1744788847482,0.05406073,125.13,125.1,0.06126226]
[1744788847972,8.04666073,125.13,125.1,0.06126226]
[1744788848681,0.05406073,125.13,125.1,0.06126226]
[1744788848982,0.05406073,125.13,125.1,29.40126226]
[1744788850186,8.04636073,125.13,125.1,37.39516226]
[1744788850783,7.993,125.12,125.1,29.40126226]
[1744788852486,8.04666073,125.13,125.1,29.40126226]
[1744788852985,0.05406073,125.13,125.1,37.39516226]
[1744788853385,0.05406073,125.13,125.1,29.40126226]
[1744788853584,0.05406073,125.13,125.11,7.9931]
[1744788859592,0.05406073,125.13,125.1,37.39516226]
[1744788860884,0.05406073,125.13,125.11,7.9935]
[1744788861292,0.05406073,125.13,125.1,0.06126226]
[1744788861589,10.69192968,125.12,125.1,0.06126226]
[1744788861996,7.9936,125.11,125.1,0.06126226]
[1744788862697,7.9955,125.08,125.07,29.34]
[1744788862896,7.9955,125.08,125.04,605.08]
[1744788863796,0.05412391,125.07,125.05,0.05713232]
[1744788864291,0.05412391,125.07,125.05,8.05453232]
[1744788866601,0.05412391,125.07,125.06,7.9968]
[1744788869704,0.05412391,125.07,125.05,0.05713232]
[1744788870301,0.05412391,125.07,125.05,8.05423232]
[1744788870503,0.05412391,125.07,125.05,0.05713232]
[1744788870903,8.05052391,125.07,125.05,0.05713232]
[1744788871306,0.05412391,125.07,125.05,0.05713232]
[1744788871507,0.05412391,125.07,125.05,8.05443232]
[1744788871805,0.05412391,125.07,125.05,0.05713232]
[1744788873603,0.05412391,125.07,125.05,8.05443232]
[1744788874097,0.05412391,125.07,125.06,7.9968]
[1744788874499,0.05412391,125.07,125.05,0.05713232]
[1744788874805,0.05412391,125.07,125.06,7.9968]
[1744788878315,0.05412391,125.07,125.05,8.05413232]
[1744788878916,0.05412391,125.07,125.06,7.9968]
[1744788879116,40.55951546,125.12,125.06,6.85181546]
[1744788879316,40.55951546,125.12,125.07,29.34]
[1744788879710,7.9943,125.1,125.07,37.3358]
[1744788879910,40.55951546,125.12,125.07,29.34]
[1744788880317,7.9946,125.1,125.08,0.05363501]
[1744788883117,0.05110184,125.11,125.08,0.05363501]
[1744788883619,7.9945,125.1,125.08,0.05363501]
[1744788884920,8.04490184,125.11,125.08,0.05363501]
[1744788885120,0.05110184,125.11,125.08,0.05363501]
[1744788887122,8.04500184,125.11,125.08,0.05363501]
[1744788887825,7.9942,125.1,125.08,0.05363501]
[1744788888321,0.05110184,125.11,125.08,0.05363501]
[1744788888521,0.05110184,125.11,125.08,8.04883501]
[1744788888721,0.05110184,125.11,125.08,6.90545047]
[1744788889221,0.05110184,125.11,125.1,7.9942]
[1744788890022,0.05110184,125.11,125.09,7.9945]
[1744788893227,0.05110184,125.11,125.08,6.90545047]
[1744788893422,0.05110184,125.11,125.08,0.05363501]
[1744788893829,7.9946,125.1,125.08,0.05363501]
[1744788894831,7.9948,125.09,125.08,0.05363501]
[1744788903135,7.9961,125.07,125.05,6.85181546]
[1744788903735,7.9961,125.07,125.04,37.3377]
[1744788903940,7.9968,125.06,125.04,29.34]
[1744788904339,6.90640966,125.06,125.04,0.05445265]
[1744788904936,7.9974,125.05,125.04,0.05445265]
[1744788906037,7.9974,125.05,125.01,29.34]
[1744788906038,6.85181546,125.04,125.01,29.34]
[1744788906238,4.3231,125.05,124.98,38.34761546]
[1744788906439,8.0007,125.0,124.98,29.34]
[1744788907243,0.05059545,125.0,124.98,29.40148962]
[1744788908346,8.05119545,125.0,124.98,29.40148962]
[1744788909445,0.05059545,125.0,124.98,29.40148962]
[1744788910949,6.90241091,125.0,124.98,29.40148962]
[1744788911144,8.0012,124.99,124.98,0.06148962]
[1744788916046,0.05059545,125.0,124.98,29.42148962]
[1744788916244,0.05059545,125.0,124.99,6.85181546]
[1744788916438,0.05059545,125.0,124.99,14.85301546]
[1744788917043,29.36,125.07,125.03,7.9986]
[1744788917244,8.97041546,125.08,125.03,7.9986]
[1744788917545,38.24881546,125.1,125.04,6.85181546]
[1744788917740,7.9962,125.07,125.04,14.84961546]
[1744788918139,7.9977,125.05,125.04,0.0581079]
[1744788918547,6.9130749,125.07,125.04,0.0581079]
[1744788919252,7.9974,125.05,125.04,0.0581079]
[1744788920853,10.71563899,125.06,124.99,29.36]
[1744788921150,10.71563899,125.04,124.99,29.36]
[1744788921451,40.07563899,125.04,124.96,29.36]
[1744788921755,7.9999,125.02,124.97,8.0021]
[1744788922053,0.05304714,125.01,124.98,0.05074451]
[1744788922854,8.001,125.0,124.98,0.05074451]
[1744788923054,0.05304714,125.01,124.98,0.05074451]
[1744788923453,8.05334714,125.01,124.98,0.05074451]
[1744788924561,0.05304714,125.01,124.98,0.05074451]
[1744788925860,0.05304714,125.01,124.98,8.05224451]
[1744788926158,0.05304714,125.01,124.98,0.05074451]
[1744788926355,0.05304714,125.01,124.99,8.0008]
[1744788926659,0.05304714,125.01,124.99,37.3408]
[1744788928456,0.05304714,125.01,124.99,29.34]
[1744788932255,8.05344714,125.01,124.99,29.34]
[1744788932758,0.05304714,125.01,124.99,29.34]
[1744788932961,8.0009,125.0,124.98,0.05074451]
[1744788933462,0.05304714,125.01,124.98,0.05074451]
[1744788934062,8.0011,125.0,124.98,0.05074451]
[1744788934663,8.05334714,125.01,124.98,0.05074451]
[1744788934857,37.39334714,125.01,124.98,0.05074451]
[1744788935162,29.39304714,125.01,124.98,0.05074451]
[1744788936065,33.57304714,125.01,124.98,0.05074451]
[1744788937066,10.71563899,125.0,124.98,0.05074451]
[1744788937360,12.88183899,125.0,124.98,0.05074451]
[1744788937966,8.0012,124.99,124.98,0.05074451]
[1744788939968,8.0045,124.94,124.9,14.2196]
[1744788940666,8.0051,124.93,124.9,6.2129]
[1744788940963,8.0051,124.93,124.9,4.1353]
[1744788941160,8.05879743,124.93,124.9,4.19311305]
[1744788941365,8.0057,124.92,124.9,4.19311305]
[1744788941767,8.0064,124.91,124.9,4.19311305]
[1744788942070,0.05369743,124.93,124.9,4.19311305]
[1744788942571,8.0061,124.92,124.9,4.19311305]
[1744788944173,0.05369743,124.93,124.9,4.19311305]
[1744788945374,8.006,124.92,124.9,4.19311305]
[1744788945772,0.05369743,124.93,124.9,0.05781305]
[1744788946972,29.36,124.92,124.9,0.05781305]
[1744788947167,8.0064,124.91,124.9,0.05781305]
[1744788948779,8.0064,124.91,124.9,0.01407741]
[1744788949374,10.71563899,124.9,124.83,33.6653]
[1744788949574,12.87743899,124.9,124.83,33.6653]
[1744788949776,8.0099,124.86,124.83,33.6653]
[1744788950278,8.0099,124.86,124.83,29.36]
[1744788950478,8.06320041,124.86,124.83,29.36]
[1744788950979,8.0102,124.85,124.83,29.36]
[1744788951179,0.05330041,124.86,124.83,29.36]
[1744788951576,40.1289394,124.86,124.79,29.36]
[1744788952869,8.0126,124.82,124.79,29.36]
[1744788953577,8.06790021,124.82,124.79,29.36]
[1744788954178,8.0131,124.81,124.79,29.36]
[1744788955378,0.05530021,124.82,124.79,29.36]
[1744788956578,8.0132,124.81,124.79,29.36]
[1744788957679,8.0132,124.81,124.77,8.015]
[1744788957978,0.05530021,124.82,124.76,29.38]
[1744788958182,31.4331,124.83,124.76,29.38]
[1744788958379,8.06807716,124.8,124.76,37.3957]
[1744788958974,8.0142,124.79,124.76,37.3957]
[1744788959174,8.0142,124.79,124.76,29.38]
[1744788959374,8.0152,124.78,124.76,29.38]
[1744788959774,0.05417716,124.8,124.76,29.38]
[1744788959974,0.05417716,124.8,124.74,10.1128]
[1744788960174,0.05417716,124.8,124.74,2.0958]
[1744788960781,8.0151,124.78,124.74,2.0958]
[1744788961182,0.05096602,124.77,124.74,2.0958]
[1744788961380,0.05096602,124.77,124.74,10.1127]
[1744788961681,0.05096602,124.77,124.74,2.0958]
[1744788961881,0.05096602,124.77,124.75,8.0162]
[1744788962583,0.05096602,124.77,124.74,10.1128]
[1744788962882,8.06666602,124.77,124.74,10.1128]
[1744788963089,0.05096602,124.77,124.75,8.0161]
[1744788964276,0.05096602,124.77,124.75,10.71563899]
[1744788964481,29.38,124.87,124.76,31.5114]
[1744788964682,29.38,124.87,124.78,10.71563899]
[1744788964979,10.71563899,124.86,124.79,37.394]
[1744788965482,0.05360875,124.83,124.81,0.05848542]
[1744788966582,8.0121,124.82,124.81,0.05848542]
[1744788967286,8.06540875,124.83,124.81,0.05848542]
[1744788967585,0.05360875,124.83,124.81,0.05848542]
[1744788967881,8.06510875,124.83,124.81,0.05848542]
[1744788969085,0.05360875,124.83,124.81,0.05848542]
[1744788970287,0.05360875,124.83,124.81,8.07098542]
[1744788971388,0.05360875,124.83,124.81,0.05848542]
[1744788972087,0.05360875,124.83,124.81,8.07098542]
[1744788974196,0.05360875,124.83,124.82,8.0121]
[1744788974493,0.05360875,124.83,124.81,0.05848542]
[1744788974891,0.05360875,124.83,124.81,8.07098542]
[1744788975995,0.05360875,124.83,124.81,0.05848542]
[1744788976493,8.06510875,124.83,124.81,0.05848542]
[1744788977400,8.0121,124.82,124.81,0.05848542]
[1744788979501,8.0141,124.79,124.76,606.24]
[1744788979695,8.0141,124.79,124.76,29.38]
[1744788979997,8.0141,124.79,124.76,37.3957]
[1744788980201,8.0148,124.78,124.76,29.38]
[1744788980595,8.06585669,124.78,124.76,29.38]
[1744788980998,8.06585669,124.78,124.74,10.0847]
[1744788981201,0.05105669,124.78,124.74,2.0678]
[1744788981396,0.05105669,124.78,124.75,8.0166]
[1744788982905,8.06585669,124.78,124.75,8.0166]
[1744788983101,8.06585669,124.78,124.74,8.0171]
[1744788983402,0.05105669,124.78,124.73,391.38]
[1744788983602,8.06605669,124.78,124.73,391.38]
[1744788983800,8.06605669,124.78,124.74,8.0172]
[1744788984104,0.05105669,124.78,124.73,391.38]
[1744788984405,0.05105669,124.78,124.74,8.0173]
[1744788984699,8.0156,124.77,124.73,391.38]
[1744788984899,0.05105669,124.78,124.73,399.3975]
[1744788985094,8.0157,124.77,124.73,399.3975]
[1744788985502,0.05105669,124.78,124.73,399.3975]
[1744788986000,8.0166,124.76,124.73,29.38]
[1744788986499,29.43105669,124.78,124.73,29.38]
[1744788986700,8.017,124.75,124.73,29.38]
[1744788986900,40.09563899,124.78,124.73,29.38]
[1744788987103,8.069814,124.75,124.73,29.38]
[1744788987499,0.052914,124.75,124.73,29.38]
[1744788987705,8.0173,124.74,124.73,29.38]
[1744788988404,8.0173,124.74,124.7,616.4135]
[1744788988800,8.0173,124.74,124.71,8.0192]
[1744788989206,8.069914,124.75,124.7,608.394]
[1744788989405,8.069914,124.75,124.71,8.0186]
[1744788989600,8.069914,124.75,124.7,608.394]
[1744788989903,8.069914,124.75,124.71,8.0187]
[1744788990206,8.0176,124.74,124.7,608.394]
[1744788990506,0.052914,124.75,124.7,616.4135]
[1744788991804,8.0176,124.74,124.7,616.4135]
[1744788993004,8.018,124.73,124.7,616.4135]
[1744788993802,8.0186,124.72,124.7,29.38]
[1744788994200,8.07859673,124.72,124.7,29.38]
[1744788995007,8.07859673,124.72,124.69,8.0202]
[1744788995209,8.0192,124.71,124.68,10.1072]
[1744788995605,8.0192,124.71,124.69,29.4]
[1744788996811,0.05999673,124.72,124.69,29.4]
[1744788997108,0.05999673,124.72,124.7,14.9114169]
[1744788997407,0.05999673,124.72,124.71,29.4]
[1744789001111,31.5922,124.78,124.71,29.4]
[1744789001311,31.5922,124.78,124.71,31.5476]
[1744789001711,40.16860224,124.81,124.71,31.5476]
[1744789001910,40.16860224,124.81,124.72,12.77490224]
[1744789002111,8.0138,124.8,124.76,8.0154]
[1744789002312,10.76860224,124.79,124.73,29.4]
[1744789002512,10.8298146,124.79,124.77,0.05642355]
[1744789002714,8.0147,124.78,124.77,0.05642355]
[1744789003615,8.0172,124.75,124.73,29.4]